[Event "Ceske Budejovice IM 2022"]
[Site "Ceske Budejovice"]
[Date "2022.07.03"]
[Round "3.2"]
[White "Lajbl, Jan"]
[Black "Nagy, Ladislav"]
[Result "1/2-1/2"]
[ECO "C45"]
[WhiteElo "2212"]
[BlackElo "2209"]
[Annotator "RC"]
[PlyCount "82"]
[EventDate "2022.07.01"]
[EventType "tourn"]
[EventCountry "CZE"]
[SourceTitle "playchess.com"]
[Source "ChessBase"]
[SourceQuality "1"]
[TimeControl "40/5400+30:1800+30"]

1. e4 {[%emt 0:02:11]} e5 {[%emt 0:00:12]} 2. Nf3 {[%emt 0:00:14]} Nc6 {[%emt 0:00:12]} 3. d4 {[%emt 0:00:18]} exd4 {[%emt 0:00:29]} 4. Nxd4 {[%emt 0:00:05]} Bc5 {[%emt 0:02:27]} 5. Be3 {[%emt 0:01:03]} Qf6 {[%emt 0:01:34]} 6. c3 {[%emt 0:00:22]} Nge7 {[%emt 0:03:08]} 7. Bc4 {[%emt 0:00:52]} Ne5 {[%emt 0:02:22]} 8. Be2 {[%emt 0:00:06]} Qg6 {[%emt 0:03:25]} 9. O-O {[%emt 0:05:11]} d6 {[%emt 0:02:16]} 10. Nd2 {[%emt 0:12:51]} Bh3 {[%emt 0:05:30]} 11. Bf3 {[%emt 0:01:26]} O-O {[%emt 0:03:46]} 12. Kh1 {[%emt 0:03:15]} Nxf3 {[%emt 0:01:35]} 13. Qxf3 {[%emt 0:00:04]} Bd7 {[%emt 0:03:18]} 14. b4 {[%emt 0:09:43]} Bb6 {[%emt 0:03:58]} 15. Nc4 {[%emt 0:06:47]} Nc6 {[%emt 0:06:58]} 16. Nf5 {[%emt 0:15:21]} Rfe8 {[%emt 0:11:36]} 17. Bxb6 {[%emt 0:01:26]} axb6 {[%emt 0:00:27]} 18. Nce3 {[%emt 0:01:10]} Ne7 {[%emt 0:23:32]} 19. Nxe7+ {[%emt 0:03:49]} Rxe7 {[%emt 0:00:02]} 20. Nd5 {[%emt 0:00:07]} Rxe4 {[%emt 0:03:20]} 21. Rae1 {[%emt 0:13:57]} Rae8 {[%emt 0:02:14]} 22. Rxe4 {[%emt 0:00:48]} Rxe4 {[%emt 0:02:58]} 23. Nxc7 {[%emt 0:01:42]} h5 {[%emt 0:06:28]} 24. Nd5 {[%emt 0:10:45]} Bc6 {[%emt 0:02:22]} 25. Qd1 {[%emt 0:02:06]} Re5 {[%emt 0:03:16]} 26. c4 {[%emt 0:01:24]} b5 {[%emt 0:02:35]} 27. f4 {[%emt 0:00:53]} Re4 {[%emt 0:01:27]} 28. cxb5 {[%emt 0:01:49]} Bxb5 {[%emt 0:01:15]} 29. Re1 {[%emt 0:01:17]} Rxe1+ {[%emt 0:00:56]} 30. Qxe1 {[%emt 0:00:04]} Kh7 {[%emt 0:01:01]} 31. h3 {[%emt 0:03:17]} Qf5 {[%emt 0:00:38]} 32. Qd2 {[%emt 0:00:58]} Bc6 {[%emt 0:00:29]} 33. Ne7 {[%emt 0:00:35]} Qxh3+ {[%emt 0:00:27]} 34. Kg1 {[%emt 0:00:02]} Qd7 {[%emt 0:00:40]} 35. Qc2+ {[%emt 0:00:24]} g6 {[%emt 0:00:15]} 36. Nxc6 {[%emt 0:00:20]} bxc6 {[%emt 0:00:21]} 37. a4 {[%emt 0:00:30]} d5 {[%emt 0:00:42]} 38. a5 {[%emt 0:00:25]} d4 {[%emt 0:00:36]} 39. Qd3 Qa7 40. Qc2 Qd7 41. Qd3 Qa7 1/2-1/2

[Event "Ceske Budejovice IM 2022"]
[Site "Ceske Budejovice"]
[Date "2022.07.03"]
[Round "3.3"]
[White "Finek, Vaclav"]
[Black "Dev, Shah"]
[Result "1/2-1/2"]
[ECO "D27"]
[WhiteElo "2393"]
[BlackElo "2292"]
[Annotator "TA"]
[PlyCount "85"]
[EventDate "2022.07.01"]
[EventType "tourn"]
[EventCountry "CZE"]
[SourceTitle "playchess.com"]
[Source "ChessBase"]
[SourceQuality "1"]
[TimeControl "40/5400+30:1800+30"]

{[%evp 21,85,12,21,9,16,20,42,18,80,55,82,23,27,21,12,15,24,21,20,19,34,12,33,27,84,82,64,76,133,46,20,25,41,39,29,34,62,53,69,0,66,16,33,8,11,0,19,9,67,0,31,0,0,0,0,-18,-21,-16,-7,-14,0,0,0,0,8,8]} 1. d4 {[%emt 0:00:02]} d5 {[%emt 0:00:35]} 2. c4 {[%emt 0:00:07]} dxc4 {[%emt 0:00:08]} 3. Nf3 {[%emt 0:00:05]} Nf6 {[%emt 0:00:07]} 4. e3 {[%emt 0:00:06]} e6 {[%emt 0:00:04]} 5. Bxc4 {[%emt 0:00:04]} c5 {[%emt 0:00:08]} 6. O-O {[%emt 0:00:09]} a6 {[%emt 0:00:04]} 7. dxc5 {[%emt 0:02:12]} Bxc5 {[%emt 0:00:08]} 8. Qxd8+ {[%emt 0:00:50]} Kxd8 {[%emt 0:00:08]} 9. Rd1+ {[%emt 0:00:50]} Ke7 {[%emt 0:00:09]} 10. Nc3 {[%emt 0:00:09]} b5 {[%emt 0:06:44]} 11. Be2 {[%emt 0:00:15]} Bb7 {[%emt 0:03:17]} 12. Nd2 {[%emt 0:00:34] D27: Queen's Gambit Accepted: Classical main line: 7 e4!? and 7 a4.} Nbd7 {[%emt 0:00:57]} 13. Nb3 {[%emt 0:00:12]} Rac8 {[%emt 0:01:04] [#]} 14. Bd2 $146 {[%emt 0:20:53] Threatening a4. White is slightly better.} ({Predecessor:} 14. a4 b4 15. Na2 Bd6 16. Bd2 Bd5 17. Na5 Rc2 18. Nxb4 Rxb2 19. Nac6+ Ke8 20. Nxd5 Nxd5 21. Bxa6 {1-0 (92) Jacobson,B (2524)-Hong,A (2504) Chess.com INT 2022}) 14... Bd6 {[%emt 0:33:42]} (14... Bb6 $11) 15. Na5 {[%emt 0:10:06]} Rb8 {[%emt 0:23:21]} 16. Nxb7 {[%emt 0:13:57]} ({Better is} 16. a4 $16) 16... Rxb7 $11 {[%emt 0:00:25]} 17. Be1 {[%emt 0:00:20]} b4 {[%emt 0:05:13]} 18. Na4 {[%emt 0:01:26]} ({Reject} 18. Bxa6 Rb6 19. Nb5 Bc5 $17) 18... a5 $1 {[%emt 0:01:05]} 19. Rac1 {[%emt 0:02:06]} Rd8 {[%emt 0:04:11]} 20. Kf1 {[%emt 0:07:37]} g5 {[%emt 0:02:08]} 21. h3 {[%emt 0:00:35]} h5 {[%emt 0:00:46]} 22. b3 {[%emt 0:04:59]} g4 {[%emt 0:01:21]} (22... Be5 $11) 23. Rc6 $16 {[%emt 0:02:43]} Nb8 {[%emt 0:02:30]} 24. Rc4 {[%emt 0:01:19]} Rg8 {[%emt 0:07:05] [#]} (24... Nbd7 $142) 25. hxg4 {[%emt 0:06:17]} (25. f4 $1 $16) 25... hxg4 $14 {[%emt 0:00:23]} 26. g3 {[%emt 0:01:26]} Rc7 {[%emt 0:05:08]} 27. Rxc7+ {[%emt 0:01:39]} Bxc7 {[%emt 0:00:01]} 28. Rc1 {[%emt 0:00:35]} Ne8 {[%emt 0:01:40]} 29. Nc5 {[%emt 0:07:24]} Bb6 {[%emt 0:01:24]} 30. Na4 {[%emt 0:03:55] White is more active.} (30. a3 $5) 30... Bc7 {[%emt 0:00:01]} 31. Bb5 {[%emt 0:00:10]} (31. Bd2 $14) 31... Kd8 {[%emt 0:00:12]} 32. Nc5 {[%emt 0:01:46] [#] Hoping for Nb7+.} Nd6 {[%emt 0:00:15] Against Nb7+} 33. Be2 {[%emt 0:03:23]} Bb6 {[%emt 0:01:35]} 34. Nd3 {[%emt 0:02:09]} Nd7 {[%emt 0:00:55] Against Ne5} ({Black should try} 34... Ke7 $11) 35. Rc6 {[%emt 0:01:17]} (35. Ra1 $14) 35... Ne4 {[%emt 0:00:00]} 36. Nb2 {[%emt 0:02:18]} Nec5 {[%emt 0:01:05] The position is equal.} 37. Nc4 {[%emt 0:01:16]} Bc7 {[%emt 0:00:01]} 38. Nd6 {[%emt 0:01:14]} Bxd6 {[%emt 0:00:19]} 39. Rxd6 {[%emt 0:00:05]} Kc7 {[%emt 0:00:24]} 40. Rd1 {[%emt 0:01:07][%cal Oa2a3]} f5 {[%emt 0:00:38]} 41. a3 {[%emt 0:05:51]} Rb8 {[%emt 0:02:31]} 42. axb4 {[%emt 0:00:28]} axb4 {[%emt 0:00:13]} 43. Rd4 {Weighted Error Value: White=0.19 (very precise) /Black=0.17 (very precise)} 1/2-1/2

[Event "Ceske Budejovice IM 2022"]
[Site "Ceske Budejovice"]
[Date "2022.07.03"]
[Round "3.4"]
[White "Civin, Tomas"]
[Black "Bochnicka, Vladimir"]
[Result "0-1"]
[ECO "C28"]
[WhiteElo "2419"]
[BlackElo "2295"]
[Annotator "TA"]
[PlyCount "56"]
[EventDate "2022.07.01"]
[EventType "tourn"]
[EventCountry "CZE"]
[SourceTitle "playchess.com"]
[Source "ChessBase"]
[SourceQuality "1"]
[TimeControl "40/5400+30:1800+30"]

{[%evp 16,56,0,0,18,19,18,-3,2,-39,-29,-43,-38,-37,-32,-31,-27,-35,-25,-31,-18,-39,0,5,56,0,0,20,47,46,37,32,67,-296,-215,-272,-260,-29985,-29986,-29986,-29987,-29988,-29986]} 1. e4 {[%emt 0:00:04]} e5 {[%emt 0:00:08]} 2. Nc3 {[%emt 0:00:09]} Nc6 {[%emt 0:10:18]} 3. Bc4 {[%emt 0:00:44]} Nf6 {[%emt 0:03:17]} 4. d3 {[%emt 0:00:15]} Na5 {[%emt 0:03:03]} 5. Nge2 {[%emt 0:00:11]} Nxc4 {[%emt 0:05:39]} 6. dxc4 {[%emt 0:01:14]} Bc5 {[%emt 0:00:12]} 7. O-O {[%emt 0:01:42]} d6 {[%emt 0:00:44]} 8. Qd3 {[%emt 0:01:35]} Be6 {[%emt 0:03:49] 8...0-0 deserves study.} 9. b3 {[%emt 0:04:37]} Qe7 {[%emt 0:06:24] C28: Vienna Game: 2...Nf6 3 Bc4 Nc6.} 10. Ng3 {[%emt 0:04:27] [#]} g6 $146 {[%emt 0:09:12]} ({Predecessor:} 10... O-O-O 11. Nd5 Nxd5 12. exd5 Bg4 13. Bd2 h5 14. b4 Bb6 15. a4 h4 16. c5 Bxc5 17. bxc5 hxg3 18. Qxg3 {1-0 (46) Preziuso,T-Beer,S DESC email 2011}) 11. Na4 {[%emt 0:07:10]} Nd7 {[%emt 0:06:13] The position is equal.} 12. Kh1 {[%emt 0:11:07]} h5 {[%emt 0:15:21]} 13. Nf5 {[%emt 0:16:12]} gxf5 {[%emt 0:10:02]} 14. exf5 {[%emt 0:00:26] [#]} O-O-O $1 {[%emt 0:00:14][%cal Od8g8]} 15. fxe6 {[%emt 0:02:13]} Qxe6 {[%emt 0:00:08]} 16. Be3 {[%emt 0:00:30]} Rhg8 {[%emt 0:07:58][%cal Og8g2]} 17. Nxc5 {[%emt 0:03:55]} dxc5 {[%emt 0:01:37]} 18. Qd5 {[%emt 0:02:31]} Qg4 {[%emt 0:00:27]} 19. Rg1 {[%emt 0:00:58]} h4 {[%emt 0:02:16]} (19... Qf5 $11) 20. h3 {[%emt 0:01:07]} (20. Bxc5 $2 Nxc5 21. f3 (21. Qxc5 h3) 21... Rxd5 $19) ({Better is} 20. Qxf7 $14 Rdf8 21. Qd5) 20... Qf5 $11 {[%emt 0:07:41]} 21. Rad1 {[%emt 0:02:22]} (21. Bxc5 $2 c6 22. Qf3 (22. Qd6 $2 Nf6 $19) 22... Qxf3 23. gxf3 Nxc5 $19) 21... c6 {[%emt 0:02:38]} 22. Qd3 {[%emt 0:02:09]} e4 {[%emt 0:02:07]} 23. Qd6 {[%emt 0:03:21] Black must now prevent Bf4.} Ne5 {[%emt 0:00:09]} 24. Qxc5 {[%emt 0:00:29][%mdl 8192] This costs White the game.} (24. Qh6 $1 $14 {is the one way to stay ahead.}) 24... Rxd1 $19 {[%emt 0:00:08]} 25. Rxd1 {[%emt 0:00:03]} Qg6 $40 {[%emt 0:00:07][%csl Gg8][%cal Rg6g2][%mdl 128] White is in trouble.} 26. g4 {[%emt 0:00:05] [#]} (26. Rg1 $19 Nf3 27. Qxa7 (27. g4 $2 hxg3 28. Rxg3 Rd8 $19) 27... Nxg1 28. Qa8+ Kc7 29. Bf4+ Kd7 30. Qxb7+ Ke6 31. g4 (31. Qxc6+ $2 Kf5 $19) 31... hxg3 32. fxg3 (32. Qxc6+ $2 Kf5 $19)) 26... hxg3 $1 {[%emt 0:01:23] Black mates.} 27. Qxe5 {[%emt 0:04:02]} gxf2 {[%emt 0:00:07][%csl Gg8][%cal Rg6g2]} 28. Qh2 {[%emt 0:03:02]} Qh5 {[%emt 0:00:12] Weighted Error Value: White=0.74/Black=0.14 (very precise)} 0-1

[Event "Ceske Budejovice IM 2022"]
[Site "Ceske Budejovice"]
[Date "2022.07.03"]
[Round "3.5"]
[White "Plischki, Sebastian"]
[Black "Svanda, Ondrej"]
[Result "1/2-1/2"]
[ECO "A04"]
[WhiteElo "2384"]
[BlackElo "2363"]
[Annotator "RC"]
[PlyCount "85"]
[EventDate "2022.07.01"]
[EventType "tourn"]
[EventCountry "CZE"]
[SourceTitle "playchess.com"]
[Source "ChessBase"]
[SourceQuality "1"]
[TimeControl "40/5400+30:1800+30"]

1. Nf3 {[%emt 0:00:05]} c5 {[%emt 0:00:12]} 2. c4 {[%emt 0:00:20]} g6 {[%emt 0:00:32]} 3. d4 {[%emt 0:01:05]} cxd4 {[%emt 0:00:08]} 4. Nxd4 {[%emt 0:00:09]} Nf6 {[%emt 0:00:17]} 5. Nc3 {[%emt 0:00:43]} Nc6 {[%emt 0:00:14]} 6. e4 {[%emt 0:00:16]} d6 {[%emt 0:00:10]} 7. Be2 {[%emt 0:00:19]} Nxd4 {[%emt 0:00:04]} 8. Qxd4 {[%emt 0:00:06]} Bg7 {[%emt 0:00:03]} 9. Be3 {[%emt 0:00:33]} O-O {[%emt 0:00:07]} 10. Qd2 {[%emt 0:00:09]} a5 {[%emt 0:00:09]} 11. O-O {[%emt 0:00:24]} a4 {[%emt 0:00:13]} 12. Bd4 {[%emt 0:01:01]} Be6 {[%emt 0:09:45]} 13. f4 {[%emt 0:02:43]} Qa5 {[%emt 0:15:27]} 14. Rad1 {[%emt 0:00:57]} Rfc8 {[%emt 0:03:44]} 15. b3 {[%emt 0:01:13]} axb3 {[%emt 0:04:31]} 16. axb3 {[%emt 0:00:08]} Re8 {[%emt 0:21:38]} 17. Qe3 {[%emt 0:08:44]} Bg4 {[%emt 0:10:14]} 18. e5 {[%emt 0:18:24]} Bxe2 {[%emt 0:01:57]} 19. Qxe2 {[%emt 0:00:59]} Nd7 {[%emt 0:06:02]} 20. Nb5 {[%emt 0:08:38]} Nc5 {[%emt 0:07:00]} 21. Bxc5 {[%emt 0:08:51]} dxc5 {[%emt 0:00:01]} 22. f5 {[%emt 0:04:56]} Qb6 {[%emt 0:05:36]} 23. e6 {[%emt 0:02:59]} gxf5 {[%emt 0:01:48]} 24. exf7+ {[%emt 0:02:05]} Kxf7 {[%emt 0:00:01]} 25. Rxf5+ Kg8 26. h3 {[%emt 0:06:03]} Qc6 {[%emt 0:03:58]} 27. Kh2 {[%emt 0:04:26]} b6 {[%emt 0:00:47]} 28. Rd3 {[%emt 0:00:25]} Qg6 {[%emt 0:02:52]} 29. Rfd5 {[%emt 0:02:31]} Ra1 {[%emt 0:00:52]} 30. Rg3 {[%emt 0:06:16]} Rh1+ {[%emt 0:00:02]} 31. Kxh1 {[%emt 0:00:11]} Qxg3 {[%emt 0:00:01]} 32. Nd6 {[%emt 0:08:30]} Rf8 {[%emt 0:02:16]} 33. Nf5 {[%emt 0:00:44]} Qf4 {[%emt 0:01:42]} 34. g3 {[%emt 0:06:02]} Qc1+ {[%emt 0:01:44]} 35. Kg2 {[%emt 0:01:07]} Bf6 {[%emt 0:00:44]} 36. h4 {[%emt 0:01:32]} Kh8 {[%emt 0:00:20]} 37. Rd1 {[%emt 0:01:24]} Qc3 {[%emt 0:00:19]} 38. Rd3 {[%emt 0:00:34]} Qc1 {[%emt 0:00:09]} 39. Qe4 {[%emt 0:03:19]} Qc2+ {[%emt 0:01:52]} 40. Kh3 {[%emt 0:00:18]} Qb1 {[%emt 0:00:03]} 41. Kg2 {[%emt 0:11:15]} Qc2+ {[%emt 0:00:01]} 42. Kh3 {[%emt 0:00:09]} Qb1 {[%emt 0:00:02]} 43. Kg2 {[%emt 0:00:29]} 1/2-1/2

[Event "Ceske Budejovice IM 2022"]
[Site "Ceske Budejovice"]
[Date "2022.07.04"]
[Round "4.1"]
[White "Gretarsson, Helgi Ass"]
[Black "Svanda, Ondrej"]
[Result "0-1"]
[ECO "E32"]
[WhiteElo "2472"]
[BlackElo "2363"]
[Annotator "TA"]
[PlyCount "60"]
[EventDate "2022.07.01"]
[EventType "tourn"]
[EventCountry "CZE"]
[SourceTitle "playchess.com"]
[Source "ChessBase"]
[SourceQuality "1"]
[TimeControl "40/5400+30:1800+30"]

{[%evp 11,60,4,4,-3,-2,-8,4,-8,-9,0,2,-65,-45,-124,-140,-111,-111,-157,-153,-150,-111,-120,-110,-201,-180,-330,-301,-320,-318,-644,-428,-416,-415,-392,-381,-381,-220,-204,-135,-143,-134,-175,-159,-264,-251,-268,-259,-647,-600,-678,-664]} 1. d4 {[%emt 0:00:02]} Nf6 {[%emt 0:00:08]} 2. c4 {[%emt 0:00:04]} e6 {[%emt 0:00:02]} 3. Nc3 {[%emt 0:00:06]} Bb4 {[%emt 0:00:06]} 4. Qc2 {[%emt 0:00:04]} O-O {[%emt 0:00:07]} 5. Nf3 {[%emt 0:00:25]} d5 {[%emt 0:02:13]} 6. cxd5 {[%emt 0:22:46]} exd5 {[%emt 0:03:00]} 7. Bg5 {[%emt 0:00:34][%cal Bc1g5,Bg5h4,Bh4g3][%mdl 32] E32: Nimzo-Indian: Classical (4 Qc2): 4...0-0.} h6 {[%emt 0:03:34]} 8. Bh4 {[%emt 0:00:50]} c5 {[%emt 0:21:32]} 9. dxc5 {[%emt 0:35:10] The position is equal.} g5 {[%emt 0:06:06]} (9... Bxc5 10. Bxf6 gxf6 11. e3 $14) 10. Bg3 {[%emt 0:00:07]} Ne4 {[%emt 0:00:26]} 11. a3 {[%emt 0:31:20] [#]} (11. e3 $11) 11... Bf5 $146 {[%emt 0:12:58]} (11... Bxc3+ $5 12. bxc3 Bf5 $15) ({Predecessor:} 11... Bxc3+ 12. bxc3 Bf5 13. Qb2 Nd7 14. Nd4 Bg6 15. f3 Nexc5 16. e3 Qe7 17. Qd2 Rae8 {0-1 (54) Sethuraman,S (2624)-Jakovenko,D (2733) Caleta 2015}) 12. Qb3 {[%emt 0:01:47]} (12. axb4 Nxg3 13. e4 Nxh1 $17) (12. Be5 $15 Bxc3+ 13. Bxc3) 12... Bxc3+ $17 {[%emt 0:01:42]} 13. bxc3 {[%emt 0:00:00] [#]} Na6 $1 {[%emt 0:06:19] aiming for ...Re8.} (13... Nxc5 14. Qb2 $15) 14. Nd4 {[%emt 0:00:18]} (14. e3 $142) 14... Naxc5 {[%emt 0:01:37] Pair of Knights!} 15. Qb4 {[%emt 0:00:00]} a5 {[%emt 0:01:43]} 16. Qb2 {[%emt 0:01:31]} Bg6 {[%emt 0:02:29] Hoping for ...Qe7. Black is more active.} 17. e3 {[%emt 0:00:43] [#]} (17. f3 $17 Nxg3 18. hxg3) 17... Qe7 $1 $19 {[%emt 0:03:27]} 18. Nb5 {[%emt 0:02:08]} (18. Bb5 $142) 18... Rac8 {[%emt 0:09:35]} 19. Be2 {[%emt 0:01:16]} f5 {[%emt 0:05:26] White must now prevent ...f4.} (19... Na4 $2 20. Qb3 Naxc3 21. Nxc3 Rxc3 22. Qxd5) 20. f3 $2 {[%emt 0:00:27]} (20. Bc7) 20... Nxg3 {[%emt 0:01:58]} 21. hxg3 {[%emt 0:00:01]} Qxe3 {[%emt 0:00:09]} 22. Kf1 {[%emt 0:00:01]} f4 {[%emt 0:11:09] ( -> ...Nd3)} ({Avoid the trap} 22... Ne4 $2 23. fxe4 fxe4+ 24. Ke1 Qxg3+ 25. Kd1 Qxg2 26. Re1 $19) 23. Qc1 {[%emt 0:00:54]} Kg7 {[%emt 0:01:13]} (23... Qe5 $142 24. Qd1 fxg3) 24. gxf4 {[%emt 0:00:27]} Qxc1+ {[%emt 0:00:22]} ({Stronger than} 24... gxf4 25. Qxe3 fxe3 26. Rh4 $17) ({Inferior is} 24... Qxf4 25. Qxf4 Rxf4 26. Kg1) 25. Rxc1 {[%emt 0:00:02]} Rxf4 $40 {[%emt 0:00:04][%mdl 128] Black has strong attack.} 26. Nd4 {[%emt 0:01:38]} Rf6 {[%emt 0:01:30]} 27. Ke1 {[%emt 0:00:35]} (27. Kf2 $17 {might work better.}) 27... Rb6 {[%emt 0:01:03]} 28. Bb5 {[%emt 0:00:40]} Bd3 {[%emt 0:01:01]} 29. c4 {[%emt 0:00:01]} (29. Rd1 Bxb5 30. Rb1) 29... dxc4 {[%emt 0:00:47]} 30. Kd2 {[%emt 0:00:58]} Rd8 {[%emt 0:00:17] Weighted Error Value: White=0.62/Black=0.21 (precise)} 0-1

[Event "Ceske Budejovice IM 2022"]
[Site "Ceske Budejovice"]
[Date "2022.07.04"]
[Round "4.2"]
[White "Bochnicka, Vladimir"]
[Black "Plischki, Sebastian"]
[Result "1-0"]
[ECO "B45"]
[WhiteElo "2295"]
[BlackElo "2384"]
[Annotator "TA"]
[PlyCount "89"]
[EventDate "2022.07.01"]
[EventType "tourn"]
[EventCountry "CZE"]
[SourceTitle "playchess.com"]
[Source "ChessBase"]
[SourceQuality "1"]
[TimeControl "40/5400+30:1800+30"]

{[%evp 24,89,37,20,55,21,38,19,48,12,12,26,29,12,63,62,77,-28,-25,-64,-31,-89,-103,-463,-479,-523,-479,-819,-815,-619,-469,-824,55,55,32,24,29,70,405,396,395,364,352,320,208,90,88,88,204,207,195,209,203,193,322,291,282,316,315,287,366,391,369,301,236,277,824,787]} 1. e4 {[%emt 0:00:02]} c5 {[%emt 0:00:10]} 2. Nf3 {[%emt 0:00:06]} e6 {[%emt 0:00:09]} 3. d4 {[%emt 0:00:10]} cxd4 {[%emt 0:00:07]} 4. Nxd4 {[%emt 0:00:06]} Nc6 {[%emt 0:00:07]} 5. Nc3 {[%emt 0:01:00]} d6 {[%emt 0:00:32]} 6. Be3 {[%emt 0:00:59]} Nf6 {[%emt 0:00:34]} 7. f3 {[%emt 0:01:41]} Be7 {[%emt 0:00:22]} 8. Qd2 {[%emt 0:00:21]} O-O {[%emt 0:00:18]} 9. O-O-O {[%emt 0:00:38]} a6 {[%emt 0:00:12]} 10. g4 {[%emt 0:00:56]} Nxd4 {[%emt 0:00:19]} 11. Bxd4 {[%emt 0:00:06]} b5 {[%emt 0:00:15]} 12. g5 {[%emt 0:00:26]} Nd7 {[%emt 0:00:10]} 13. h4 {[%emt 0:00:15][%cal Bh2h4,Bh4h5][%mdl 32]} Qc7 {[%emt 0:00:34] B80: Sicilian Scheveningen: 6 g3 and 6 Be3, including English Attack.} 14. Kb1 {[%emt 0:05:53]} b4 {[%emt 0:01:13]} 15. Na4 {[%emt 0:12:01]} Bb7 {[%emt 0:01:31] The position is equal.} 16. b3 {[%emt 0:03:13]} Bc6 {[%emt 0:09:24]} 17. Nb2 {[%emt 0:05:32]} a5 {[%emt 0:02:10]} 18. h5 {[%emt 0:07:41][%cal Og5g6]} Ne5 {[%emt 0:05:52] [#] Prevents g6.} (18... d5 $11) 19. Qg2 $146 {[%emt 0:10:14]} ({Predecessor:} 19. Bxe5 dxe5 20. Bc4 Bc5 21. Qh2 Kh8 22. g6 h6 23. gxf7 Rxf7 24. Rhf1 Raf8 25. Nd3 Bd4 26. Nf2 Rd8 27. Ng4 Rf4 {0-1 (27) Nijboer,F (2559)-Babula,V (2554) Skopje 2015}) 19... f5 {[%emt 0:11:38]} 20. gxf6 {[%emt 0:05:43]} ({Better is} 20. g6 $16 {Strongly threatening Bxe5.} Bf6 21. gxh7+ Kh8 22. Bxe5 Bxe5 23. Nd3) 20... Bxf6 $11 {[%emt 0:01:01][%cal Oe5f3]} 21. Be2 {[%emt 0:22:49]} a4 {[%emt 0:07:46]} 22. f4 {[%emt 0:03:40]} (22. h6 $1 $15 axb3 23. cxb3) 22... axb3 $17 {[%emt 0:01:00]} 23. axb3 {[%emt 0:06:03][%mdl 8192]} (23. cxb3 $17 {was the crucial defense.} Qb7 24. fxe5 dxe5 25. Bd3 exd4 26. h6) 23... Nd7 $19 {[%emt 0:18:32]} (23... Qa5 $2 24. Kc1 Nd7 25. Rhg1 $19 (25. Bxf6 $2 Nxf6 26. Na4 Bxa4 $19)) 24. Rhg1 {[%emt 0:02:00][%cal Og2g7] Hoping for Qxg7+!} Rf7 {[%emt 0:06:28]} (24... Qa5 25. Na4 Rf7 26. Bc4 Bxd4 27. Rxd4 $11) 25. Na4 {[%emt 0:06:19]} (25. Qf2 $142 e5 26. fxe5 dxe5 27. Ba7) 25... Bxd4 {[%emt 0:06:45]} 26. Rxd4 {[%emt 0:00:11]} Nc5 {[%emt 0:02:06]} 27. Bc4 {[%emt 0:01:13]} (27. h6 $142 Bxa4 28. Qxg7+ (28. bxa4 $2 Nxa4 29. Rc4 Nc3+ 30. Kc1 Qb6 $19) 28... Rxg7 29. Rxg7+ Qxg7 30. hxg7) 27... Rxf4 $2 {[%emt 0:08:10]} (27... Bxa4 $19 28. bxa4 Rxa4) 28. Nxc5 $14 {[%emt 0:01:06][%mdl 64] Remove Defender} dxc5 {[%emt 0:03:48]} 29. Bxe6+ {[%emt 0:00:09]} Kh8 $1 {[%emt 0:00:47]} 30. Rd7 $40 {[%emt 0:00:39][%csl Gd7,Gg1][%cal Rg2g7][%mdl 128] White has some attack. Dancing on a razor blade.} Qe5 {[%emt 0:00:17][%mdl 8192]} (30... Rf1+ $1 $14 31. Rxf1 Bxd7 32. Bxd7 Qxd7) 31. Qxg7+ $18 {[%emt 0:00:19]} Qxg7 {[%emt 0:00:10]} 32. Rdxg7 {[%emt 0:00:04]} Rf1+ {[%emt 0:01:21]} 33. Rxf1 {[%emt 0:00:04]} Kxg7 {[%emt 0:00:05][%mdl 4096] Endgame [#] KRB-KRB} 34. e5 {[%emt 0:02:20]} (34. Bd5 $1 $18 Bxd5 35. exd5) 34... Be8 $16 {[%emt 0:04:57] Inhibits Rf7+.} 35. Bg4 {[%emt 0:02:01] White is more active.} Rd8 {[%emt 0:02:04]} (35... Ra6 $16 {was called for.}) 36. Rf6 $18 {[%emt 0:00:40] White wants to mate with h6+.} h6 {[%emt 0:02:21] [#]} 37. Rd6 {[%emt 0:00:45] Inhibits Rd5.} Rb8 {[%emt 0:00:18]} 38. Kc1 {[%emt 0:00:28]} Rb7 {[%emt 0:00:24]} (38... Ra8 {might work better.} 39. Kb2 Ra5) 39. Re6 {[%emt 0:00:44]} Bf7 {[%emt 0:01:38]} 40. Rc6 {[%emt 0:00:36]} c4 {[%emt 0:00:27]} 41. bxc4 {[%emt 0:03:33]} b3 {[%emt 0:00:15]} 42. cxb3 {[%emt 0:00:11]} Rxb3 {[%emt 0:00:05]} 43. e6 {[%emt 0:00:21] Black must now prevent Rc7.} Be8 {[%emt 0:02:07]} 44. Rc8 {[%emt 0:06:01]} Rg3 $2 {[%emt 0:02:22]} (44... Kf8 45. Bd1 Ra3) 45. Bd1 {[%emt 0:01:06] Weighted Error Value: White=0.53/Black=0.60} ({Less strong is} 45. Rxe8 Rxg4 46. Rc8 Kf6 $16) 1-0

[Event "Ceske Budejovice IM 2022"]
[Site "Ceske Budejovice"]
[Date "2022.07.04"]
[Round "4.3"]
[White "Dev, Shah"]
[Black "Civin, Tomas"]
[Result "1/2-1/2"]
[ECO "D32"]
[WhiteElo "2292"]
[BlackElo "2419"]
[Annotator "TA"]
[PlyCount "37"]
[EventDate "2022.07.01"]
[EventType "tourn"]
[EventCountry "CZE"]
[SourceTitle "playchess.com"]
[Source "ChessBase"]
[SourceQuality "1"]
[TimeControl "40/5400+30:1800+30"]

{[%evp 12,37,56,47,43,49,65,20,32,6,9,10,13,14,19,29,23,28,21,25,11,1,12,3,3,8,7,7]} 1. d4 {[%emt 0:00:55]} d5 {[%emt 0:00:07]} 2. c4 {[%emt 0:00:08]} e6 {[%emt 0:00:05][%cal Be7e6,Be6d5,Bd5d4][%mdl 32]} 3. Nf3 {[%emt 0:00:51]} c5 {[%emt 0:00:08]} 4. cxd5 {[%emt 0:04:04]} exd5 {[%emt 0:00:09]} 5. Nc3 {[%emt 0:00:08]} Nc6 {[%emt 0:00:08]} 6. dxc5 {[%emt 0:06:35]} d4 {[%emt 0:02:20]} 7. Na4 $1 {[%emt 0:00:57]} Bxc5 {[%emt 0:00:32][%mdl 64] [#] Decoy. D32: Tarrasch Defence: Sidelines and lines without g3.} 8. Nxc5 {[%emt 0:00:07]} Qa5+ {[%emt 0:00:07]} 9. Bd2 {[%emt 0:00:07]} Qxc5 {[%emt 0:00:08]} 10. e3 {[%emt 0:04:55]} dxe3 {[%emt 0:01:41]} 11. Bxe3 {[%emt 0:00:09]} Qb4+ {[%emt 0:00:43]} 12. Qd2 {[%emt 0:01:05]} Nf6 {[%emt 0:02:40]} 13. Qxb4 {[%emt 0:03:41]} Nxb4 {[%emt 0:00:14]} 14. Bb5+ {[%emt 0:00:06]} Bd7 {[%emt 0:01:40]} 15. Bxd7+ {[%emt 0:00:09]} Nxd7 {[%emt 0:00:31] [#] Pair of Knights!} 16. O-O $146 {[%emt 0:01:01] The position is equal.} ({Predecessor:} 16. O-O-O O-O-O 17. Ng5 Ne5 18. Bxa7 Nxa2+ 19. Kb1 Nb4 20. Bb6 Rxd1+ 21. Rxd1 f6 22. Ne4 {1-0 (49) Perez Ponsa,F (2553)-Valerga,D (2431) Montevideo 2022}) 16... O-O {[%emt 0:04:55]} 17. Rad1 {[%emt 0:05:36]} Rfd8 {[%emt 0:02:49]} 18. a3 {[%emt 0:00:42]} Nc6 {[%emt 0:00:50]} 19. Rd2 {[%emt 0:06:16] Weighted Error Value: White=0.09 (flawless) /Black=0.01 (flawless)} 1/2-1/2